[Event "FTX Crypto Cup MCCT 2022"]
[Site "Miami"]
[Date "2022.08.11"]
[Round "1.3"]
[White "Praggnanandhaa R"]
[Black "Firouzja, Alireza"]
[Result "1-0"]
[ECO "C41"]
[WhiteElo "2648"]
[BlackElo "2793"]
[Annotator "TA"]
[PlyCount "151"]
[EventDate "2022.08.10"]
[EventType "tourn"]
[EventCountry "USA"]
[SourceTitle "playchess.com"]
[Source "ChessBase"]
[SourceQuality "1"]
[TimeControl "900+10"]

{[%evp 17,151,39,48,34,35,36,44,32,30,16,20,4,16,8,18,0,24,16,21,15,2,2,20,8,19,0,8,5,14,0,12,0,0,0,0,-28,-28,-22,-30,-62,0,-116,-16,-20,-33,-41,-35,-100,-97,-104,-101,-148,-156,-148,-147,-169,-135,-106,-123,-128,-82,-293,-202,-357,-362,-419,-377,-1066,-1048,-1040,-42,-26,-31,-17,0,0,63,0,48,0,0,0,60,61,70,75,100,0,239,247,247,254,254,254,254,248,254,262,300,91,92,0,0,0,0,0,0,0,22,22,22,0,0,0,0,0,0,0,0,0,29971,29972,29969,29970,29982,29983,29980,29981,29981,29982,29982,29983,29983,29984,29984,29985]} 1. e4 {[%emt 0:00:00]} d6 {[%emt 0:00:00]} 2. d4 {[%emt 0:00:13]} Nf6 {[%emt 0:00:02]} 3. Nc3 {[%emt 0:00:02]} e5 {[%emt 0:00:01]} 4. Nf3 {[%emt 0:00:02]} Nbd7 {[%emt 0:00:02]} 5. Bc4 {[%emt 0:00:02]} Be7 {[%emt 0:00:01]} 6. O-O {[%emt 0:00:01]} O-O {[%emt 0:00:01]} 7. Re1 {[%emt 0:00:04]} c6 {[%emt 0:00:02]} 8. a4 {[%emt 0:00:01]} h6 {[%emt 0:00:03] Nowadays more popular than 8...b6.} 9. h3 {[%emt 0:00:18]} Re8 {[%emt 0:00:01]} 10. a5 {[%emt 0:00:32] C41: Philidor Defence.} Bf8 {[%emt 0:00:38]} 11. Be3 {[%emt 0:01:05]} exd4 {[%emt 0:05:08]} 12. Bxd4 {[%emt 0:00:08] White is slightly better.} Qc7 {[%emt 0:00:02]} 13. Ba2 {[%emt 0:00:56]} Ne5 {[%emt 0:00:08]} 14. Nh4 {[%emt 0:00:43]} Be6 {[%emt 0:00:07]} 15. Bxe6 {[%emt 0:01:24]} Rxe6 {[%emt 0:00:02]} 16. Nf5 {[%emt 0:00:23] [#]} g6 $146 {[%emt 0:02:27]} ({Predecessor:} 16... Ned7 17. Qd2 Rae8 18. f3 d5 19. exd5 Rxe1+ 20. Rxe1 Rxe1+ 21. Qxe1 Qxa5 22. dxc6 Qxf5 23. cxd7 Nxd7 {0-1 (38) Hund,S (2076)-Janzelj,L (2191) Corte 2022}) 17. Nh4 {[%emt 0:02:35]} Nh5 {[%emt 0:01:37]} 18. g3 {[%emt 0:03:05]} Qd8 {[%emt 0:01:14]} 19. Ng2 {[%emt 0:00:09]} Nd7 {[%emt 0:00:28]} 20. Kh2 {[%emt 0:00:44]} Nhf6 {[%emt 0:00:30]} 21. f4 {[%emt 0:00:45]} Bg7 {[%emt 0:02:13]} 22. Qd3 {[%emt 0:01:10]} Qc7 {[%emt 0:00:07]} 23. Rf1 {[%emt 0:01:58]} a6 {[%emt 0:00:42]} 24. f5 {[%emt 0:00:11]} Ne5 {[%emt 0:00:27]} 25. Bxe5 {[%emt 0:00:57]} Rxe5 {[%emt 0:00:01]} 26. fxg6 {[%emt 0:00:07]} fxg6 {[%emt 0:00:01]} 27. Nh4 {[%emt 0:00:01]} Kh7 {[%emt 0:00:22]} 28. Nf3 {[%emt 0:00:03]} Rh5 {[%emt 0:00:20]} (28... Re6 $15) 29. Ne2 {[%emt 0:00:40]} (29. Nh4 $11 {remains equal.} Re5 30. Rad1) 29... Ng4+ {[%emt 0:00:41]} ({Much worse is} 29... Rxa5 $6 30. Rxa5 Qxa5 31. Nf4 $11) (29... d5 $1 $17 {[%cal Rd5e4]} 30. exd5 Rxd5) 30. Kg2 $11 {[%emt 0:00:05]} Ne5 {[%emt 0:00:01]} 31. Nxe5 {[%emt 0:00:32]} Rxe5 {[%emt 0:00:01]} 32. Rf4 {[%emt 0:00:03]} (32. Nf4 $15) 32... Rae8 $17 {[%emt 0:00:13]} 33. Raf1 {[%emt 0:00:09]} R8e7 {[%emt 0:00:20]} 34. b4 {[%emt 0:00:19]} (34. h4 $142) 34... d5 $1 {[%emt 0:00:22]} 35. Nc3 {[%emt 0:00:04][%cal Re4d5]} Qd6 {[%emt 0:00:02]} 36. R1f3 {[%emt 0:00:29]} Qe6 {[%emt 0:00:20][%cal Rd5e4]} ({And not} 36... Qxb4 37. exd5 Qxc3 38. Qxc3 $15) 37. exd5 {[%emt 0:00:12]} cxd5 {[%emt 0:00:01]} 38. Nd1 {[%emt 0:00:34]} Re2+ {[%emt 0:00:17]} (38... d4 $142 39. Kh2 Rc7) 39. Nf2 $2 {[%emt 0:00:02]} (39. Rf2 $17) 39... d4 {[%emt 0:00:28]} 40. Qb3 $2 {[%emt 0:00:40]} (40. b5) 40... Qc6 $1 $19 {[%emt 0:00:16]} 41. h4 {[%emt 0:00:20]} h5 {[%emt 0:01:54]} 42. Qd3 $2 {[%emt 0:00:03]} (42. Rf7 R2e3 43. Nd3) 42... R7e3 {[%emt 0:00:07]} 43. Qd1 {[%emt 0:00:01]} Qxc2 $2 {[%emt 0:00:15]} (43... Kh6 $19 44. Rf7 d3 45. cxd3 Bd4) 44. Qxc2 $15 {[%emt 0:00:07]} Rxc2 {[%emt 0:00:00]} 45. Rf7 {[%emt 0:00:02]} Kh6 {[%emt 0:00:17]} 46. Rxb7 {[%emt 0:00:06]} Ree2 {[%emt 0:00:15]} (46... Rxf3 $1 $11 47. Kxf3 Rc3+ 48. Kg2 Rc2) 47. Rd7 {[%emt 0:00:13]} (47. Rff7 $14 d3 48. b5 axb5 49. a6) 47... d3 {[%emt 0:00:07]} (47... Be5 $11 {should be considered.}) 48. Rdxd3 {[%emt 0:00:08]} (48. b5 $14 axb5 49. a6) 48... Rb2 $11 {[%emt 0:00:01]} 49. Rd7 {[%emt 0:00:05]} Red2 {[%emt 0:00:14]} (49... Rxb4 $11 50. Rff7 Rbb2) 50. Rxd2 $14 {[%emt 0:00:17]} Rxd2 {[%emt 0:00:00][%mdl 4096] Endgame KRB-KRN} 51. Kf1 {[%emt 0:00:03]} Bd4 {[%emt 0:00:12]} 52. Nd3 {[%emt 0:00:18]} ({White should try} 52. Rf7 $1 $16) 52... g5 $2 {[%emt 0:00:05] [#]} (52... Bc3 $1 $11 {and Black has nothing to worry.}) 53. Nc5 $1 $18 {[%emt 0:00:34]} gxh4 {[%emt 0:00:32]} 54. gxh4 {[%emt 0:00:13] Black must now prevent Nb3.} Bxc5 {[%emt 0:00:10]} 55. bxc5 {[%emt 0:00:01] Threatens to win with Rf6+. KR-KR} Rc2 {[%emt 0:00:05]} 56. Rf6+ {[%emt 0:00:02]} Kg7 {[%emt 0:00:02]} 57. Rc6 {[%emt 0:00:26]} Kf7 {[%emt 0:00:10]} 58. Ke1 $2 {[%emt 0:00:05]} (58. Rxa6 $18 {Rc6 is the strong threat.} Rxc5 59. Ra8) 58... Ke7 $16 {[%emt 0:00:05]} 59. Kd1 {[%emt 0:00:13]} (59. Rxa6 $16 {Strongly threatening Ra7+.} Rxc5 60. Ra7+ Kd8 61. Kf2) 59... Rc4 $11 {[%emt 0:00:04]} 60. Kd2 {[%emt 0:00:02]} Rxh4 {[%emt 0:00:21]} 61. Kc3 {[%emt 0:00:11]} Ra4 {[%emt 0:00:16]} 62. Rxa6 {[%emt 0:00:04]} h4 {[%emt 0:00:01]} 63. Kb3 {[%emt 0:00:08]} Ra1 {[%emt 0:00:00]} 64. Kb4 {[%emt 0:00:02] Hoping for Kb5.} Kd7 {[%emt 0:00:35]} 65. Rh6 {[%emt 0:00:15]} Rb1+ {[%emt 0:00:04]} 66. Kc4 {[%emt 0:00:03]} Rc1+ {[%emt 0:00:03]} 67. Kb5 {[%emt 0:00:01] Threatening mate with Rh7+.} Rb1+ {[%emt 0:00:02]} 68. Ka6 {[%emt 0:00:13]} Ra1 $2 {[%emt 0:00:28][%mdl 8192] [#]} (68... h3 $11) 69. Kb7 $1 {[%emt 0:00:38] White mates.} ({Less strong is} 69. Kb5 Rb1+ 70. Ka6 Kc7 $16) 69... Rb1+ {[%emt 0:00:07]} 70. Rb6 {[%emt 0:00:07]} Rc1 {[%emt 0:00:07]} 71. c6+ {[%emt 0:00:05]} Kd6 {[%emt 0:00:01]} 72. Rb2 {[%emt 0:00:20]} h3 {[%emt 0:00:03]} 73. a6 {[%emt 0:00:09]} h2 {[%emt 0:00:36]} 74. Rd2+ {[%emt 0:00:01]} Kc5 {[%emt 0:00:00]} 75. Rxh2 {[%emt 0:00:02]} Rb1+ {[%emt 0:00:15]} 76. Kc7 {[%emt 0:00:03] A wild game.  Weighted Error Value: White=0.44/Black=0.36} 1-0

[Event "FTX Crypto Cup MCCT 2022"]
[Site "Miami"]
[Date "2022.08.11"]
[Round "1.4"]
[White "Carlsen, Magnus"]
[Black "Giri, Anish"]
[Result "1-0"]
[ECO "A48"]
[WhiteElo "2864"]
[BlackElo "2760"]
[Annotator "TA"]
[PlyCount "59"]
[EventDate "2022.08.10"]
[EventType "tourn"]
[EventCountry "USA"]
[SourceTitle "playchess.com"]
[Source "ChessBase"]
[SourceQuality "1"]
[TimeControl "900+10"]

{[%evp 15,59,18,30,0,43,22,14,33,58,27,69,73,78,81,70,64,128,135,139,118,180,182,185,187,244,241,214,213,204,208,309,295,767,774,775,737,892,862,1577,613,613,589,29983,29984,29984,3232]} 1. d4 {[%emt 0:00:00]} Nf6 {[%emt 0:00:00]} 2. Nf3 {[%emt 0:00:03]} g6 {[%emt 0:00:08]} 3. Bg5 {[%emt 0:00:05][%cal Bc1g5,Bg5h4,Bh4g3][%mdl 32]} Bg7 {[%emt 0:00:05]} 4. Nbd2 {[%emt 0:00:09]} h6 {[%emt 0:00:13]} 5. Bh4 {[%emt 0:00:02]} d6 {[%emt 0:00:09]} 6. e4 {[%emt 0:00:05]} g5 {[%emt 0:00:30]} 7. Bg3 {[%emt 0:00:01]} Nh5 {[%emt 0:00:01]} 8. c3 {[%emt 0:00:05]} e6 {[%emt 0:00:09]} 9. Nc4 {[%emt 0:00:56] A48: 1 d4 Nf6 2 Nf3 g6: Torre, London and Colle Systems.} Nd7 {[%emt 0:01:02]} 10. Nfd2 {[%emt 0:00:36]} Nxg3 {[%emt 0:00:07]} 11. hxg3 {[%emt 0:00:00] The position is equal.} b6 {[%emt 0:00:50]} 12. a4 {[%emt 0:00:58]} a6 {[%emt 0:00:04]} 13. Bd3 {[%emt 0:00:03]} Bb7 {[%emt 0:00:03]} 14. Qe2 {[%emt 0:00:04] White is more active.} Qe7 {[%emt 0:00:08]} 15. Ne3 {[%emt 0:00:01]} c5 {[%emt 0:00:22]} (15... a5 $14) 16. d5 $16 {[%emt 0:00:02] [#]} Nf6 $146 {[%emt 0:02:33]} ({Predecessor:} 16... Kd8 17. O-O-O Kc7 18. Kb1 Rhd8 19. f4 Nf6 20. Rhe1 Qd7 21. dxe6 fxe6 22. Bc2 Qc6 {½-½ (80) Kovacevic,S (2243)-Garza Marco,S (2385) Estadilla 2019}) 17. f4 {[%emt 0:03:58]} Qc7 {[%emt 0:00:07]} (17... Kf8 $16) 18. O-O-O {[%emt 0:00:26]} gxf4 {[%emt 0:01:50]} 19. gxf4 {[%emt 0:00:05][%cal Bg3f4,Bf4f5,Bf5e6][%mdl 32]} b5 {[%emt 0:00:08]} (19... exd5 $142 20. Nf5 Kf8) 20. dxe6 $18 {[%emt 0:00:53]} fxe6 {[%emt 0:00:10]} 21. e5 {[%emt 0:00:18]} dxe5 {[%emt 0:00:18] [#]} 22. Bg6+ {[%emt 0:00:04]} Kf8 {[%emt 0:00:11]} (22... Ke7 {is a better defense.} 23. f5 (23. fxe5 Nd5 $16) 23... Bd5) 23. f5 {[%emt 0:00:02]} ({Stronger than} 23. axb5 exf4 24. Nc2 (24. Ng4 axb5 25. Qxe6 Bc8 $15) 24... axb5 $14) 23... b4 $2 {[%emt 0:02:01]} (23... Qe7 24. fxe6 (24. axb5 Nd5 $18) 24... Qxe6 25. axb5 h5) 24. fxe6 {[%emt 0:00:07]} bxc3 {[%emt 0:00:02]} 25. Ndc4 {[%emt 0:00:24]} cxb2+ {[%emt 0:00:07]} 26. Qxb2 {[%emt 0:00:07]} Bc8 {[%emt 0:00:22]} 27. Qb6 {[%emt 0:00:47]} (27. Rd6 $142 Kg8 28. Rf1 Bxe6 29. Rxe6) 27... Qxb6 {[%emt 0:00:28]} 28. Nxb6 {[%emt 0:00:01] Pair of Knights!} Rb8 {[%emt 0:00:02]} 29. Nxc8 {[%emt 0:00:02]} Rxc8 {[%emt 0:01:09]} 30. Nf5 {[%emt 0:00:01] White took control after the opening.  Weighted Error Value: White=0.27 (precise) /Black=0.70} 1-0

[Event "FTX Crypto Cup MCCT 2022"]
[Site "Miami"]
[Date "2022.08.11"]
[Round "1.4"]
[White "Firouzja, Alireza"]
[Black "Praggnanandhaa R"]
[Result "1/2-1/2"]
[ECO "B31"]
[WhiteElo "2793"]
[BlackElo "2648"]
[Annotator "TA"]
[PlyCount "108"]
[EventDate "2022.08.10"]
[EventType "tourn"]
[EventCountry "USA"]
[SourceTitle "playchess.com"]
[Source "ChessBase"]
[SourceQuality "1"]
[TimeControl "900+10"]

{[%evp 10,108,9,0,32,30,28,0,0,9,0,0,0,0,4,-17,0,-12,-12,-18,-14,-12,-20,-24,-24,-22,-16,-14,-22,-30,-20,-27,-27,-21,-8,-14,0,0,0,0,0,0,0,0,0,-21,-10,-20,14,14,16,0,0,-8,-8,-10,0,-8,0,0,0,0,0,0,0,0,0,0,0,0,0,0,0,0,0,0,0,0,0,0,0,0,0,0,0,0,66,0,66,0,66,0,0,0,0,0,0,0,0,0,0]} 1. e4 {[%emt 0:00:00]} c5 {[%emt 0:00:00]} 2. Nf3 {[%emt 0:00:02]} Nc6 {[%emt 0:00:01]} 3. Bb5 {[%emt 0:00:01]} g6 {[%emt 0:00:01]} 4. Bxc6 {[%emt 0:00:07]} bxc6 {[%emt 0:00:01]} 5. O-O {[%emt 0:00:01]} Bg7 {[%emt 0:00:01]} 6. Re1 {[%emt 0:00:02]} Qc7 {[%emt 0:00:01] B31: Sicilian: 2...Nc6 3 Bb5 g6.} 7. d3 {[%emt 0:00:16]} e5 {[%emt 0:00:03][%cal Be7e5,Be5d4,Bd4d3][%mdl 32]} 8. b4 {[%emt 0:01:20]} (8. c3 $5 {[%cal Rc1e3]}) 8... cxb4 {[%emt 0:00:21]} 9. a3 {[%emt 0:00:01]} bxa3 {[%emt 0:01:27]} 10. Bxa3 {[%emt 0:00:16]} Ne7 {[%emt 0:01:42]} 11. d4 {[%emt 0:01:09]} exd4 {[%emt 0:00:30]} 12. e5 {[%emt 0:00:30] [#] Prevents d6. Black must now prevent Nbd2.} c5 {[%emt 0:01:17] [#]} 13. c3 $146 {[%emt 0:00:03]} ({Predecessor:} 13. Nbd2 Bb7 14. Nb3 O-O 15. Nxc5 Bxf3 16. Qxf3 Rfe8 17. Na6 Qd8 18. Bd6 Rc8 19. Qb7 {½-½ (25) Horwitz,D (2321)-Khairullin,R (2331) ICCF email 2018}) 13... d3 {[%emt 0:01:22]} 14. Nbd2 {[%emt 0:04:03]} Bb7 {[%emt 0:00:47]} 15. Nb3 {[%emt 0:00:04]} O-O {[%emt 0:02:03]} 16. Bxc5 {[%emt 0:00:07]} Rfe8 {[%emt 0:00:12][%cal Od3d2]} 17. Qxd3 {[%emt 0:00:44]} Nf5 {[%emt 0:02:02]} 18. g4 {[%emt 0:03:12]} Bxf3 {[%emt 0:01:57]} 19. Qxf3 {[%emt 0:01:09]} Nh4 {[%emt 0:00:18]} 20. Qg3 {[%emt 0:01:14]} g5 {[%emt 0:00:30] ...Qc6 is the strong threat.} 21. Bd6 {[%emt 0:00:02]} Qb7 {[%emt 0:00:36]} 22. Nc5 {[%emt 0:00:52]} Qc6 {[%emt 0:01:09]} 23. Ne4 {[%emt 0:00:05]} Bxe5 {[%emt 0:00:33]} 24. Bxe5 {[%emt 0:00:25][%mdl 64] [#] Remove Defender} Rxe5 {[%emt 0:00:02]} 25. Nxg5 {[%emt 0:00:01][%mdl 64] Remove Defender} Rxg5 {[%emt 0:00:06]} 26. Qxh4 {[%emt 0:00:00]} Rg6 {[%emt 0:00:41]} 27. Qg3 {[%emt 0:01:54]} h5 {[%emt 0:00:33]} 28. g5 {[%emt 0:00:21]} h4 {[%emt 0:00:08]} 29. Qxh4 {[%emt 0:00:38][%cal Oa1a7]} Qc5 {[%emt 0:00:03]} 30. Kh1 {[%emt 0:00:01]} Qd5+ {[%emt 0:00:11]} 31. Re4 {[%emt 0:00:20]} Re8 {[%emt 0:00:42]} 32. f3 {[%emt 0:00:14]} Rxe4 {[%emt 0:00:03]} (32... Rge6 {is more complex.} 33. g6 fxg6 34. c4 Qd3) 33. fxe4 {[%emt 0:00:03]} ({Much weaker is} 33. Qxe4 Qxg5 34. Qe2 (34. f4 Qg4 $15) 34... a5 $17) 33... Qxg5 {[%emt 0:00:04]} (33... Qd2 {looks sharper.} 34. Rb1 Kg7 35. Rg1 a5) 34. Qxg5 {[%emt 0:00:54]} Rxg5 {[%emt 0:00:01]} 35. Rxa7 $11 {[%emt 0:00:00][%mdl 4096] Endgame KR-KR} Rc5 {[%emt 0:00:01]} 36. Rxd7 {[%emt 0:00:07]} Rxc3 {[%emt 0:00:01]} 37. Rd5 {[%emt 0:00:23]} Re3 {[%emt 0:00:07]} 38. Rg5+ {[%emt 0:00:01]} Kh7 {[%emt 0:00:04]} 39. Rg4 {[%emt 0:00:04]} f5 {[%emt 0:01:09]} 40. exf5 {[%emt 0:00:02]} Rf3 {[%emt 0:00:00]} 41. Rg5 {[%emt 0:00:02]} Kh6 {[%emt 0:00:01]} 42. h4 {[%emt 0:00:01]} Rh3+ {[%emt 0:00:03]} 43. Kg2 {[%emt 0:00:02]} Rxh4 {[%emt 0:00:01]} 44. Rg6+ {[%emt 0:00:04]} Kh7 {[%emt 0:00:06]} 45. Kf3 {[%emt 0:00:06]} Ra4 {[%emt 0:00:15]} 46. Rg1 {[%emt 0:00:07]} Ra3+ {[%emt 0:00:06]} 47. Kf4 {[%emt 0:00:17]} Ra4+ {[%emt 0:00:05]} (47... Kh6 $11) 48. Ke5 {[%emt 0:00:02]} (48. Kg5 $14) 48... Ra5+ {[%emt 0:00:01]} ({Better is} 48... Kh6 $1 $11) 49. Ke6 {[%emt 0:00:11]} (49. Kf6 $1 $14) 49... Ra6+ {[%emt 0:00:01]} (49... Kh6 $1 $11) 50. Kd7 {[%emt 0:00:02]} (50. Kf7 $1 $14 Ra7+ 51. Kf8 Ra8+ 52. Kf7 Ra7+ 53. Kf8 Ra8+ 54. Kf7 Ra7+) 50... Ra7+ {[%emt 0:00:09] The position is equal.} 51. Kc6 {[%emt 0:00:21]} Rf7 {[%emt 0:00:13]} 52. Rf1 {[%emt 0:00:02]} Kg7 {[%emt 0:00:03]} 53. f6+ {[%emt 0:00:02]} Rxf6+ {[%emt 0:00:01]} 54. Rxf6 {[%emt 0:00:00]} Kxf6 {[%emt 0:00:00] Weighted Error Value: White=0.07 (flawless) /Black=0.08 (flawless)} 1/2-1/2

[Event "FTX Crypto Cup MCCT 2022"]
[Site "Miami"]
[Date "2022.08.11"]
[Round "1.4"]
[White "Le, Quang Liem"]
[Black "Aronian, Levon"]
[Result "1/2-1/2"]
[ECO "E53"]
[WhiteElo "2722"]
[BlackElo "2775"]
[Annotator "TA"]
[PlyCount "118"]
[EventDate "2022.08.10"]
[EventType "tourn"]
[EventCountry "USA"]
[SourceTitle "playchess.com"]
[Source "ChessBase"]
[SourceQuality "1"]
[TimeControl "900+10"]

{[%evp 12,118,14,5,12,21,22,17,22,0,0,2,40,31,24,20,32,38,20,35,30,12,7,8,11,12,8,9,17,9,17,-10,-6,-14,0,0,0,0,0,0,0,0,0,-40,-12,-11,-8,-12,-4,-10,-8,-8,-8,-18,0,0,0,0,8,1,1,0,5,1,1,1,1,1,1,0,1,1,1,1,1,1,8,8,8,8,8,8,8,8,8,8,8,8,8,8,8,8,8,0,8,8,8,-8,-8,-43,-43,-43,-43,-43,-43,-43,-43,-43,-43]} 1. d4 {[%emt 0:00:00]} Nf6 {[%emt 0:00:00]} 2. c4 {[%emt 0:00:02]} e6 {[%emt 0:00:02]} 3. Nc3 {[%emt 0:00:01]} Bb4 {[%emt 0:00:02]} 4. Nf3 {[%emt 0:00:02]} c5 {[%emt 0:00:03]} 5. e3 {[%emt 0:00:17]} O-O {[%emt 0:00:14]} 6. Bd3 {[%emt 0:01:24]} d5 {[%emt 0:00:02]} 7. a3 {[%emt 0:00:02]} cxd4 {[%emt 0:00:18] E53: Nimzo-Indian: Rubinstein: Main Line (4...0-0 5 Nf3 d5 6 Bd3 c5 7 0-0).} 8. axb4 {[%emt 0:00:20]} dxc4 {[%emt 0:00:01] [#]} 9. Bxc4 {[%emt 0:00:27]} dxc3 {[%emt 0:00:02] The position is equal.} 10. Qc2 {[%emt 0:01:12]} Qc7 {[%emt 0:00:29]} 11. Qxc3 {[%emt 0:00:26] [#]} Nd5 $146 {[%emt 0:00:10]} ({Predecessor:} 11... Nbd7 12. Ra5 b6 13. Rg5 Bb7 14. O-O Rac8 15. Bb5 Qxc3 16. bxc3 a6 17. Bxd7 Nxd7 {½-½ (69) Buehler,F (2055)-Hahn,C (2187) Augsburg 2011}) 12. Qb3 {[%emt 0:00:27]} Nb6 {[%emt 0:00:26]} 13. Be2 {[%emt 0:00:12]} e5 {[%emt 0:00:02]} 14. Qc3 {[%emt 0:00:17]} Qxc3+ {[%emt 0:00:23]} 15. bxc3 {[%emt 0:00:00][%cal Bb2c3,Bc3c4,Bc4c5][%mdl 32]} f6 {[%emt 0:00:10]} 16. c4 {[%emt 0:00:01]} Be6 {[%emt 0:00:03]} 17. c5 {[%emt 0:00:09]} Nd5 {[%emt 0:00:02]} 18. Bd2 {[%emt 0:00:12]} Rc8 {[%emt 0:00:46]} 19. O-O {[%emt 0:00:37]} a6 {[%emt 0:00:07]} 20. e4 {[%emt 0:00:21]} Nc7 {[%emt 0:00:03]} 21. Ra3 {[%emt 0:01:41]} Nc6 {[%emt 0:00:08]} 22. Rfa1 {[%emt 0:00:01]} Rd8 {[%emt 0:00:07]} 23. b5 {[%emt 0:00:31]} axb5 {[%emt 0:00:04] [#] Hoping for ...Rxa3.} 24. Rxa8 {[%emt 0:00:00]} Rxa8 {[%emt 0:00:02]} 25. Rxa8+ {[%emt 0:00:02]} Nxa8 {[%emt 0:00:00]} 26. Bxb5 {[%emt 0:00:01]} Nc7 {[%emt 0:00:02]} 27. Bf1 {[%emt 0:00:20]} (27. Bxc6 $5 bxc6 28. Ba5 $11) 27... Na6 {[%emt 0:00:53]} 28. Be3 {[%emt 0:00:03]} Nab4 {[%emt 0:00:01]} 29. Ne1 {[%emt 0:00:31]} Kf7 {[%emt 0:00:30]} 30. g3 {[%emt 0:00:23]} Na5 {[%emt 0:01:00]} 31. Bd2 {[%emt 0:00:20]} Nbc6 {[%emt 0:00:04]} 32. f4 {[%emt 0:00:22]} Nb3 {[%emt 0:00:19] Pair of Knights!} 33. Be3 {[%emt 0:00:04] Black must now prevent f5.} Ke7 {[%emt 0:00:01]} 34. Kf2 {[%emt 0:00:37]} h6 {[%emt 0:01:52]} 35. Nf3 {[%emt 0:00:23]} g5 {[%emt 0:00:22]} 36. fxg5 {[%emt 0:02:05]} fxg5 {[%emt 0:00:03]} 37. h4 {[%emt 0:00:02]} g4 {[%emt 0:00:03]} 38. Nd2 {[%emt 0:00:02]} Nxd2 {[%emt 0:00:03]} 39. Bxd2 $11 {[%emt 0:00:00][%mdl 4096] Endgame KBB-KBN} h5 {[%emt 0:00:02]} 40. Ke3 {[%emt 0:00:07]} Nb8 {[%emt 0:04:17]} 41. Bb4 {[%emt 0:01:36] Threatening c6+.} Kf6 {[%emt 0:00:18]} 42. Bb5 {[%emt 0:00:13]} Bd7 {[%emt 0:00:10]} 43. Bc4 {[%emt 0:00:13]} Bc6 {[%emt 0:00:15]} 44. Ba5 {[%emt 0:00:43]} Nd7 {[%emt 0:00:03]} 45. Bd8+ {[%emt 0:00:04]} Kg6 {[%emt 0:00:03]} 46. Be7 {[%emt 0:00:59]} b6 $1 {[%emt 0:00:10]} 47. cxb6 {[%emt 0:00:17]} Nxb6 {[%emt 0:00:00]} 48. Bd3 {[%emt 0:01:07]} Nd7 {[%emt 0:00:31]} 49. Bd6 {[%emt 0:00:07]} Kf6 {[%emt 0:00:30]} 50. Ba3 {[%emt 0:00:26]} Nb6 {[%emt 0:00:13]} 51. Kd2 {[%emt 0:00:22]} Nd7 {[%emt 0:00:16]} (51... Bxe4 $2 52. Bxe4 Ke6 53. Kd3 $18) 52. Kc3 {[%emt 0:00:14]} Kg6 {[%emt 0:00:04]} 53. Bd6 {[%emt 0:00:06]} Kf6 {[%emt 0:00:22]} 54. Bb1 {[%emt 0:00:41]} Ke6 {[%emt 0:00:13]} 55. Bc7 {[%emt 0:01:01]} Nc5 {[%emt 0:00:06] Black is slightly better.} 56. Ba2+ {[%emt 0:00:32]} Kf6 {[%emt 0:00:03]} 57. Bd8+ {[%emt 0:00:35]} Kg7 {[%emt 0:00:03]} 58. Bb1 {[%emt 0:00:31]} Nxe4+ {[%emt 0:00:06]} 59. Bxe4 {[%emt 0:00:07]} Bxe4 {[%emt 0:00:00] Weighted Error Value: White=0.05 (flawless) /Black=0.03 (flawless)} 1/2-1/2